[Event "DVM U12w 2024"]
[Site "Bad Homburg"]
[Date "2024.12.27"]
[Round "2"]
[White "Gelbach, Amelia"]
[Black "Lao, Theodora Siyuan"]
[Result "0-1"]
[ECO "C54"]
[WhiteElo "809"]
[BlackElo "1170"]
[Annotator "NA RC"]
[PlyCount "28"]
[EventDate "2024.12.23"]
[EventType "team-tourn"]
[EventRounds "7"]
[EventCountry "GER"]
[SourceTitle "playchess.com"]
[Source "ChessBase"]
[SourceQuality "1"]
[TimeControl "40/5400+30:1800+30"]

1. e4 {[%emt 0:00:02]} e5 {[%emt 0:00:01]} 2. Nf3 {[%emt 0:00:27]} Nc6 {[%emt 0:00:07]} 3. Bc4 {[%emt 0:00:32]} Nf6 {[%emt 0:00:11]} 4. d3 {[%emt 0:00:28]} Bc5 {[%emt 0:00:31]} 5. c3 {[%emt 0:00:38]} d5 {[%emt 0:01:00]} 6. exd5 {[%emt 0:01:05]} Nxd5 {[%emt 0:00:21]} 7. d4 {[%emt 0:01:57]} exd4 {[%emt 0:00:46]} 8. cxd4 {[%emt 0:00:23]} Bb4+ {[%emt 0:00:51]} 9. Bd2 {[%emt 0:01:19]} Bxd2+ {[%emt 0:00:33]} 10. Nbxd2 {[%emt 0:01:04]} Qe7+ {[%emt 0:00:49]} 11. Qe2 {[%emt 0:01:07]} Qxe2+ {[%emt 0:00:09]} 12. Bxe2 {[%emt 0:00:27]} Bg4 {[%emt 0:00:36]} 13. Nb3 {[%emt 0:00:56]} O-O-O {[%emt 0:00:41]} 14. Rd1 {[%emt 0:00:29]} Rhe8 {[%emt 0:01:09]} 0-1

[Event "DVM U12w 2024"]
[Site "Bad Homburg"]
[Date "2024.12.27"]
[Round "2"]
[White "Henn, Lena"]
[Black "Rabus, Luise"]
[Result "0-1"]
[ECO "B13"]
[WhiteElo "808"]
[BlackElo "983"]
[Annotator "NA RC"]
[PlyCount "76"]
[EventDate "2024.12.23"]
[EventType "team-tourn"]
[EventRounds "7"]
[EventCountry "GER"]
[SourceTitle "playchess.com"]
[Source "ChessBase"]
[SourceQuality "1"]
[TimeControl "40/5400+30:1800+30"]

1. e4 {[%emt 0:08:46]} c6 2. d4 {[%emt 0:00:00]} d5 3. exd5 cxd5 {[%emt 0:00:29]} 4. Bd3 {[%emt 0:00:00]} Nc6 {[%emt 0:00:09]} 5. c3 {[%emt 0:00:00]} Nf6 {[%emt 0:00:18]} 6. Nf3 {[%emt 0:00:00]} Bg4 {[%emt 0:00:38]} 7. Nbd2 {[%emt 0:00:00]} e6 {[%emt 0:00:39]} 8. h3 {[%emt 0:00:00]} Bxf3 {[%emt 0:00:11]} 9. Nxf3 {[%emt 0:00:00]} Bd6 {[%emt 0:01:01]} 10. Bg5 {[%emt 0:00:00]} O-O {[%emt 0:01:17]} 11. Bc2 {[%emt 0:00:00]} Re8 {[%emt 0:01:09]} 12. Ba4 {[%emt 0:00:24]} Qd7 {[%emt 0:01:29]} 13. O-O {[%emt 0:01:57]} Ne4 {[%emt 0:00:33]} 14. Qd3 {[%emt 0:05:16]} Nxg5 {[%emt 0:00:43]} 15. Nxg5 {[%emt 0:00:13]} g6 {[%emt 0:00:25]} 16. c4 {[%emt 0:02:38]} Qe7 {[%emt 0:00:36]} 17. Qe3 {[%emt 0:01:45]} Qc7 {[%emt 0:01:12]} 18. Nf3 {[%emt 0:02:01]} Bf4 {[%emt 0:00:30]} 19. Qd3 {[%emt 0:02:03]} Re7 {[%emt 0:01:03]} 20. a3 {[%emt 0:01:33]} Na5 {[%emt 0:00:44]} 21. b3 {[%emt 0:03:17]} a6 {[%emt 0:01:17]} 22. b4 {[%emt 0:04:35]} Nc6 {[%emt 0:00:16]} 23. Bxc6 {[%emt 0:02:11]} bxc6 {[%emt 0:01:41]} 24. g3 {[%emt 0:02:11]} Bd6 {[%emt 0:00:29]} 25. c5 {[%emt 0:00:15]} Bxg3 {[%emt 0:01:15]} 26. fxg3 {[%emt 0:00:51]} Qxg3+ {[%emt 0:00:09]} 27. Kh1 {[%emt 0:00:16]} Qxh3+ {[%emt 0:01:48]} 28. Kg1 {[%emt 0:01:01]} Qg3+ {[%emt 0:00:45]} 29. Kh1 {[%emt 0:00:30]} g5 {[%emt 0:01:05]} 30. Rg1 {[%emt 0:01:26]} Qh3+ {[%emt 0:00:23]} 31. Nh2 {[%emt 0:00:32]} Qxd3 {[%emt 0:00:07]} 32. Rxg5+ {[%emt 0:00:19]} Kh8 {[%emt 0:00:18]} 33. Ng4 {[%emt 0:00:36]} Rg8 {[%emt 0:00:27]} 34. Rxg8+ {[%emt 0:00:38]} Kxg8 {[%emt 0:00:07]} 35. Nf6+ {[%emt 0:00:11]} Kh8 {[%emt 0:00:32]} 36. Kh2 {[%emt 0:00:11]} Qe2+ {[%emt 0:00:36]} 37. Kh3 {[%emt 0:00:38]} Qf3+ {[%emt 0:01:08]} 38. Kh2 {[%emt 0:00:12]} Qxf6 {[%emt 0:00:35]} 0-1

[Event "DVM U12w 2024"]
[Site "Bad Homburg"]
[Date "2024.12.27"]
[Round "2"]
[White "Augustin, Luisa"]
[Black "Scarlat-Timofte, Elena"]
[Result "0-1"]
[ECO "C50"]
[WhiteElo "797"]
[BlackElo "1024"]
[Annotator "NA RC"]
[PlyCount "80"]
[EventDate "2024.12.23"]
[EventType "team-tourn"]
[EventRounds "7"]
[EventCountry "GER"]
[SourceTitle "playchess.com"]
[Source "ChessBase"]
[SourceQuality "1"]
[TimeControl "40/5400+30:1800+30"]

1. e4 {[%emt 0:00:03]} e5 {[%emt 0:00:05]} 2. Nf3 {[%emt 0:00:04]} Nc6 {[%emt 0:00:05]} 3. Bc4 {[%emt 0:00:02]} Nf6 {[%emt 0:00:13]} 4. Nc3 {[%emt 0:00:09]} Bc5 {[%emt 0:00:13]} 5. d3 {[%emt 0:00:11]} Ng4 {[%emt 0:00:46]} 6. Bg5 {[%emt 0:01:05]} Bxf2+ {[%emt 0:02:01]} 7. Kf1 {[%emt 0:00:27]} f6 {[%emt 0:01:25]} 8. Nd2 {[%emt 0:01:43]} d6 {[%emt 0:01:05]} 9. Qf3 {[%emt 0:01:33]} Nd4 {[%emt 0:02:18]} 10. Qd1 {[%emt 0:02:08]} fxg5 {[%emt 0:00:48]} 11. h3 {[%emt 0:00:23]} Ne3+ {[%emt 0:00:14]} 12. Kxf2 {[%emt 0:00:25]} Nxd1+ {[%emt 0:00:08]} 13. Raxd1 {[%emt 0:00:12]} Nxc2 {[%emt 0:00:19]} 14. Rhf1 {[%emt 0:00:52]} Qf6+ {[%emt 0:00:57]} 15. Kg1 {[%emt 0:00:12]} Qh6 {[%emt 0:00:53]} 16. Nb5 {[%emt 0:01:58]} Kd8 {[%emt 0:01:35]} 17. Rc1 {[%emt 0:00:47]} Ne3 {[%emt 0:02:59]} 18. Rf3 {[%emt 0:01:03]} g4 {[%emt 0:02:24]} 19. hxg4 {[%emt 0:00:47]} Bxg4 {[%emt 0:00:14]} 20. Rg3 {[%emt 0:00:51]} Qf4 {[%emt 0:02:53]} 21. Rf3 {[%emt 0:01:56]} Bxf3 {[%emt 0:00:51]} 22. Nxf3 {[%emt 0:00:12]} Qg3 {[%emt 0:01:01]} 23. Rc2 {[%emt 0:01:06]} Nxc2 {[%emt 0:00:19]} 24. d4 {[%emt 0:00:11]} Ne1 {[%emt 0:01:43]} 25. Nxe1 {[%emt 0:00:25]} Qxe1+ {[%emt 0:00:17]} 26. Kh2 {[%emt 0:00:04]} Qb4 {[%emt 0:01:14]} 27. b3 {[%emt 0:00:14]} a6 {[%emt 0:00:22]} 28. a3 {[%emt 0:00:21]} Qd2 {[%emt 0:00:39]} 29. dxe5 {[%emt 0:00:21]} Qf4+ {[%emt 0:00:24]} 30. Kg1 {[%emt 0:00:42]} Qxe5 {[%emt 0:00:11]} 31. Bd5 {[%emt 0:00:38]} c6 {[%emt 0:00:52]} 32. a4 {[%emt 0:00:30]} cxd5 {[%emt 0:00:16]} 33. exd5 {[%emt 0:00:13]} Qxd5 {[%emt 0:00:07]} 34. Nc3 {[%emt 0:00:24]} Qd4+ {[%emt 0:00:10]} 35. Kh2 {[%emt 0:00:13]} Qxc3 {[%emt 0:00:03]} 36. a5 {[%emt 0:00:09]} Qxb3 {[%emt 0:00:11]} 37. g4 {[%emt 0:00:14]} Rf8 {[%emt 0:00:07]} 38. g5 {[%emt 0:00:06]} Rf2+ {[%emt 0:00:10]} 39. Kg1 {[%emt 0:00:03]} Rc2 {[%emt 0:00:21]} 40. g6 {[%emt 0:00:07]} Qb1# {[%emt 0:00:10]} 0-1

[Event "DVM U12w 2024"]
[Site "Bad Homburg"]
[Date "2024.12.27"]
[Round "2"]
[White "Markl, Paula"]
[Black "Senthilkumar, Vasanthi"]
[Result "1-0"]
[ECO "C26"]
[WhiteElo "759"]
[BlackElo "818"]
[Annotator "NA RC"]
[PlyCount "49"]
[EventDate "2024.12.23"]
[EventType "team-tourn"]
[EventRounds "7"]
[EventCountry "GER"]
[SourceTitle "playchess.com"]
[Source "ChessBase"]
[SourceQuality "1"]
[TimeControl "40/5400+30:1800+30"]

1. e4 {[%emt 0:00:04]} e5 {[%emt 0:00:07]} 2. Nf3 {[%emt 0:00:08]} Nc6 {[%emt 0:00:09]} 3. Nc3 {[%emt 0:00:06]} Bc5 {[%emt 0:00:19]} 4. g3 {[%emt 0:00:22]} Nf6 {[%emt 0:00:19]} 5. Bg2 {[%emt 0:00:14]} O-O {[%emt 0:00:20]} 6. O-O {[%emt 0:00:06]} d6 {[%emt 0:00:08]} 7. d3 {[%emt 0:00:14]} h6 {[%emt 0:00:13]} 8. Bd2 {[%emt 0:00:16]} Bg4 {[%emt 0:00:13]} 9. a3 {[%emt 0:00:22]} Bxf3 {[%emt 0:01:21]} 10. Bxf3 {[%emt 0:00:38]} Re8 {[%emt 0:00:23]} 11. b4 {[%emt 0:00:14]} Bb6 {[%emt 0:00:13]} 12. Nd5 {[%emt 0:00:32]} Nxd5 {[%emt 0:00:40]} 13. exd5 {[%emt 0:00:11]} Nd4 {[%emt 0:00:34]} 14. c3 {[%emt 0:00:22]} Nxf3+ {[%emt 0:01:04]} 15. Qxf3 {[%emt 0:00:31]} Qd7 {[%emt 0:01:06]} 16. a4 {[%emt 0:00:40]} a6 {[%emt 0:00:17]} 17. a5 {[%emt 0:00:18]} Ba7 {[%emt 0:01:00]} 18. Ra4 {[%emt 0:00:02]} Qxa4 {[%emt 0:00:19]} 19. Qg4 {[%emt 0:00:21]} Qc2 {[%emt 0:03:27]} 20. Bxh6 {[%emt 0:00:27]} Kf8 {[%emt 0:00:44]} 21. Qxg7+ {[%emt 0:03:15]} Ke7 {[%emt 0:00:00]} 22. Bg5+ {[%emt 0:00:34]} Kd7 {[%emt 0:00:00]} 23. Qxf7+ {[%emt 0:00:31]} Re7 {[%emt 0:01:33]} 24. Qxe7+ {[%emt 0:00:24]} Kc8 {[%emt 0:01:55]} 25. Qd8# {[%emt 0:01:04]} 1-0